Workbook

Sheet Лист1
B2: 2. План учебного процесса образовательной программы СПО 43.02.15 "Поварское и кондитерское дело" 025П | C2: 2. План учебного процесса образовательной программы СПО 43.02.15 "Поварское и кондитерское дело" 025П
A4: Индекс | B4: Наименование циклов, дисциплин, профессиональных модулей, МДК, практик | F4: максимальная учебная нагрузка | G4: Учебная нагрузка обучающихся (час.) | P4: Распределение учебной нагрузки по курсам и семестрам ( час. в семестр)
G5: Самостоятельная учебная работа | H5: Всего | P5: 1 курс | R5: 2 курс | T5: 3 курс | V5: 4 курс
I6: в т.ч. по учебным дисциплинам и МДК | L6: По практике учебной | M6: По практике производственной | N6: Консультация | O6: Промежуточная консультация | P6: 1 сем. | Q6: 2 сем. | R6: 3 сем. | S6: 4 сем. | T6: 5 сем. | U6: 6 сем. | V6: 7 сем. | W6: 8 сем.
D7: Дифференцированных зачётов | E7: Экзамены | P7: 16 нед. | Q7: 23 нед. | R7: 16 нед. | S7: 15 нед. | T7: 10 нед. | U7: 16 нед. | V7: 12 нед. | W7: 6 нед.
I8: Теоретического обучения | J8: лаб. и практ. занятий | K8: Курсовых работ(проектов) | P8: (17 нед. т/о+ПА) | Q8: (24 нед. т/о+ ПА) | R8: (17 нед. т/о) | S8: (18 нед. т/о+4 нед. УП+2 нед. ПП+ПА) | T8: (14 нед. т/о+2 нед. УП+ 1 нед. ПП+ПА) | U8: (17 нед. т/о+4 нед. УП+4 нед. ПП+ПА) | V8: (13 нед. т/о+2 нед. УП+2 нед. ПП+ПА) | W8: (8нед. т/о+3 нед. УП+3нед. ПП+4 нед. ПДП+ПА+6 нед. ГИА)
C9: ФИО/замечание
X10: каралмаган
A14: 1 | B14: 2 | C14: 2 | D14: 4 | E14: 5 | F14: 6 | G14: 7 | H14: 8 | I14: 9 | J14: 10 | K14: 11 | L14: 12 | M14: 13 | N14: 14 | O14: 15 | P14: 16 | Q14: 17 | R14: 18 | S14: 19 | T14: 20 | U14: 21 | V14: 22 | W14: 23
A15: ОУД.00 | B15: Общеобразовательные учебные дисциплины | D15: =COUNTA(D16:D31) -> 9 | E15: =COUNTA(E16:E31) -> 6 | F15: =SUM(F16:F31) -> 1476 | G15: 0 | H15: =I15+J15+K15+L15+M15+N15+O15 -> 1486 | I15: =SUM(I16:I31) -> 561 | J15: =SUM(J16:J31) -> 841 | K15: =SUM(K16:K31) -> 0 | L15: =SUM(L16:L31) -> 0 | M15: =SUM(M16:M31) -> 0 | N15: =SUM(N16:N31) -> 24 | O15: =SUM(O16:O31) -> 60 | P15: =SUM(P16:P31) -> 612 | Q15: =SUM(Q16:Q31) -> 864 | R15: =SUM(R16:R31) -> 0 | S15: =SUM(S16:S31) -> 0 | T15: =SUM(T16:T31) -> 0 | U15: =SUM(U16:U31) -> 0 | V15: =SUM(V16:V31) -> 0 | W15: =SUM(W16:W31) -> 0 | X15: =SUM(P15:W15) -> 1476
A16: ОУД.01 | B16: Русский язык | E16: 1 | F16: 84 | G16: 0 | H16: =I16+J16+K16+L16+M16+N16+O16 -> 84 | I16: 34 | J16: 42 | N16: 2 | O16: 6 | P16: 84 | X16: =SUM(P16:W16) -> 84
A17: ОУД.02 | B17: Литература | D17: 2 | F17: 114 | G17: 0 | H17: =I17+J17+K17+L17+M17+N17+O17 -> 114 | I17: 40 | J17: 72 | O17: 2 | P17: 48 | Q17: 66 | X17: =SUM(P17:W17) -> 114
A18: ОУД.03 | B18: Математика | E18: 2 | F18: 232 | G18: 0 | H18: =I18+J18+K18+L18+M18+N18+O18 -> 232 | I18: 70 | J18: 154 | N18: 2 | O18: 6 | P18: 122 | Q18: 110 | X18: =SUM(P18:W18) -> 232
A19: ОУД.04 | B19: Иностранный язык | D19: 2 | F19: 180 | G19: 0 | H19: =I19+J19+K19+L19+M19+N19+O19 -> 180 | I19: 58 | J19: 120 | O19: 2 | P19: 60 | Q19: 120 | X19: =SUM(P19:W19) -> 180
A20: ОУД.05 | B20: Информатика | D20: 2 | F20: 108 | G20: 0 | H20: =I20+J20+K20+L20+M20+N20+O20 -> 108 | I20: 26 | J20: 80 | O20: 2 | P20: 30 | Q20: 78 | X20: =SUM(P20:W20) -> 108
A21: ОУД.06 | B21: Физика | E21: 2 | F21: 100 | G21: 0 | H21: =I21+J21+K21+L21+M21+N21+O21 -> 100 | I21: 36 | J21: 56 | N21: 2 | O21: 6 | P21: 60 | Q21: 40 | X21: =SUM(P21:W21) -> 100
A22: ОУД.07 | B22: Химия | E22: 2 | F22: 78 | G22: 0 | H22: =I22+J22+K22+L22+M22+N22+O22 -> 78 | I22: 42 | J22: 28 | N22: 2 | O22: 6 | P22: 34 | Q22: 44 | X22: =SUM(P22:W22) -> 78
A23: ОУД.08 | B23: Биология | E23: 2 | F23: 72 | G23: 0 | H23: =I23+J23+K23+L23+M23+N23+O23 -> 72 | I23: 42 | J23: 22 | N23: 2 | O23: 6 | P23: 48 | Q23: 24 | X23: =SUM(P23:W23) -> 72
A24: ОУД.09 | B24: История | D24: 2 | F24: 136 | G24: 0 | H24: =I24+J24+K24+L24+M24+N24+O24 -> 136 | I24: 62 | J24: 72 | N24: 0 | O24: 2 | P24: 40 | Q24: 96 | X24: =SUM(P24:W24) -> 136
A25: ОУД.10 | B25: Обществознание | D25: 2 | F25: 72 | G25: 0 | H25: =I25+J25+K25+L25+M25+N25+O25 -> 72 | I25: 50 | J25: 20 | N25: 0 | O25: 2 | Q25: 72 | X25: =SUM(P25:W25) -> 72
A26: ОУД.11 | B26: География | D26: 2 | F26: 36 | G26: 0 | H26: =I26+J26+K26+L26+M26+N26+O26 -> 36 | I26: 22 | J26: 12 | N26: 0 | O26: 2 | Q26: 36 | X26: =SUM(P26:W26) -> 36
A27: ОУД 12 | B27: Физическая культура | F27: 72 | G27: 0 | H27: =I27+J27+K27+L27+M27+N27+O27 -> 72 | I27: 7 | J27: 63 | N27: 0 | O27: 2 | P27: 35 | Q27: 37 | X27: =SUM(P27:W27) -> 72
A28: ОУД 13 | B28: Основы безопасности и защиты Родины | E28: 2 | F28: 80 | G28: 0 | H28: =I28+J28+K28+L28+M28+N28+O28 -> 80 | I28: 38 | J28: 34 | N28: 2 | O28: 6 | Q28: 80 | X28: =SUM(P28:W28) -> 80
A29: ОУД 14 | B29: Родная литература | D29: 2 | F29: 40 | G29: 0 | H29: =I29+J29+K29+L29+M29+N29+O29 -> 40 | I29: 10 | J29: 22 | N29: 2 | O29: 6 | P29: 15 | Q29: 25 | X29: =SUM(P29:W29) -> 40
A30: ОУД 15 | B30: Родной язык | D30: 1 | F30: 36 | G30: 0 | H30: =I30+J30+K30+L30+M30+N30+O30 -> 36 | I30: 10 | J30: 24 | N30: 0 | O30: 2 | P30: 36 | X30: =SUM(P30:W30) -> 36
A31: ОУД 16 | B31: Индивидуальный проект | D31: 2 | F31: 36 | G31: 0 | H31: =I31+J31+K31+L31+M31+N31+O31 -> 46 | I31: 14 | J31: 20 | N31: =SUM(N32:N37) -> 10 | O31: 2 | Q31: 36 | X31: =SUM(P31:W31) -> 36
A32: СГ.00 | B32: Общий гуманитарный и социально-экономический цикл | D32: =COUNTA(D33:D38) -> 3 | E32: =COUNTA(E33:E38) -> 3 | F32: =SUM(F33:F38) -> 554 | G32: 0 | H32: =I32+J32+K32+L32+M32+N32+O32 -> 546 | I32: =SUM(I33:I38) -> 198 | J32: =SUM(J33:J38) -> 324 | K32: =SUM(K33:K38) -> 0 | L32: =SUM(L33:L38) -> 0 | M32: =SUM(M33:M38) -> 0 | N32: =SUM(N33:N38) -> 6 | O32: =SUM(O33:O38) -> 18 | P32: =SUM(P33:P38) -> 0 | Q32: =SUM(Q33:Q38) -> 0 | R32: =SUM(R33:R38) -> 152 | S32: =SUM(S33:S38) -> 198 | T32: =SUM(T33:T38) -> 90 | U32: =SUM(U33:U38) -> 78 | V32: =SUM(V33:V38) -> 0 | W32: =SUM(W33:W38) -> 36 | X32: =SUM(P32:W32) -> 554
A33: СГ. 01 | B33: Основы философии | D33: 8 | F33: =G33+H33 -> 36 | G33: 0 | H33: =I33+J33+K33+L33+M33+N33+O33 -> 36 | I33: 34 | O33: 2 | W33: 36 | X33: =SUM(P33:W33) -> 36
A34: СГ. 02 | B34: История | D34: 3 | F34: =G34+H34 -> 48 | G34: 0 | H34: =I34+J34+K34+L34+M34+N34+O34 -> 48 | I34: 40 | J34: 6 | O34: 2 | R34: 48 | X34: =SUM(P34:W34) -> 48
A35: СГ. 03 | B35: Иностранный язык в профессиональной деятельности | E35: 6 | F35: =G35+H35 -> 186 | H35: =I35+J35+K35+L35+M35+N35+O35 -> 186 | I35: 74 | J35: 104 | N35: 2 | O35: 6 | R35: 48 | S35: 30 | T35: 60 | U35: 48 | X35: =SUM(P35:W35) -> 186
A36: СГ. 04 | B36: Физическая культура | D36: 6 | F36: =G36+H36 -> 160 | G36: 0 | H36: =I36+J36+K36+L36+M36+N36+O36 -> 160 | I36: 2 | J36: 158 | R36: 32 | S36: 68 | T36: 30 | U36: 30 | X36: =SUM(P36:W36) -> 160
A37: СГ. 05 | B37: Психология общения | E37: 4 | F37: =G37+H37 -> 52 | G37: 0 | H37: =I37+J37+K37+L37+M37+N37+O37 -> 52 | I37: 18 | J37: 28 | N37: 2 | O37: 4 | R37: 24 | S37: 28 | X37: =SUM(P37:W37) -> 52
A38: СГ. 06 | B38: Татарский язык в профессиональной деятельности | E38: 4 | F38: =G38+H38 -> 72 | G38: 8 | H38: =I38+J38+K38+L38+M38+N38+O38 -> 64 | I38: 30 | J38: 28 | N38: 2 | O38: 4 | S38: 72 | X38: =SUM(P38:W38) -> 72
A39: ЕН.00 | B39: Математический и общий естественнонаучный цикл | D39: =COUNTA(D40:D41) -> 1 | E39: =COUNTA(E40:E41) -> 1 | F39: =SUM(F40:F41) -> 180 | G39: 0 | H39: =I39+J39+K39+L39+M39+N39+O39 -> 180 | I39: =SUM(I40:I41) -> 124 | J39: =SUM(J40:J41) -> 52 | K39: =SUM(K40:K41) -> 0 | L39: =SUM(L40:L41) -> 0 | M39: =SUM(M40:M41) -> 0 | N39: =SUM(N40:N41) -> 0 | O39: =SUM(O40:O41) -> 4 | P39: =SUM(P40:P41) -> 0 | Q39: =SUM(Q40:Q41) -> 0 | R39: 144 | S39: 0 | T39: =SUM(T40:T41) -> 0 | U39: =SUM(U40:U41) -> 36 | V39: =SUM(V40:V41) -> 0 | W39: =SUM(W40:W41) -> 0 | X39: =SUM(P39:W39) -> 180
A40: ЕН. 01 | B40: Химия | D40: 3 | F40: 144 | G40: 0 | H40: =I40+J40+K40+L40+M40+N40+O40 -> 144 | I40: 100 | J40: 42 | O40: 2 | R40: 144 | X40: =SUM(P40:W40) -> 144
A41: ЕН. 02 | B41: Экологические основы природопользования | E41: 6 | F41: 36 | G41: 2 | H41: =I41+J41+K41+L41+M41+N41+O41 -> 36 | I41: 24 | J41: 10 | O41: 2 | U41: 36 | X41: =SUM(P41:W41) -> 36
A42: ОП.00 | B42: Общепрофессиональный цикл | D42: =COUNT(D43:D51) -> 4 | E42: =COUNT(E43:E51) -> 5 | F42: =SUM(F43:F51) -> 622 | G42: =SUM(G43:G51) -> 18 | H42: =SUM(H43:H51) -> 604 | I42: =SUM(I43:I51) -> 272 | J42: =SUM(J43:J51) -> 286 | K42: =SUM(K43:K51) -> 0 | L42: =SUM(L43:L51) -> 0 | M42: =SUM(M43:M51) -> 0 | N42: =SUM(N43:N51) -> 14 | O42: =SUM(O43:O51) -> 32 | Q42: =SUM(Q43:Q51) -> 0 | R42: =SUM(R43:R51) -> 156 | S42: =SUM(S43:S51) -> 58 | T42: =SUM(T43:T51) -> 262 | U42: =SUM(U43:U51) -> 110 | V42: =SUM(V43:V51) -> 36 | W42: =SUM(W43:W51) -> 0 | X42: =SUM(P42:W42) -> 622
A43: ОП.01 | B43: Микробиология, физиология питания, санитария и гигиена | D43: 5 | F43: =G43+H43 -> 64 | G43: 8 | H43: =I43+J43+K43+L43+M43+N43+O43 -> 56 | I43: 38 | J43: 16 | O43: 2 | T43: 64 | X43: =SUM(P43:W43) -> 64
A44: ОП.02 | B44: Организация хранения и контроль запасов и сырья | E44: 6 | F44: =G44+H44 -> 92 | G44: 0 | H44: =I44+J44+K44+L44+M44+N44+O44 -> 92 | I44: 40 | J44: 42 | N44: 4 | O44: 6 | T44: 50 | U44: 42 | X44: =SUM(P44:W44) -> 92
A45: ОП.03 | B45: Техническое оснащение организаций питания | E45: 3 | F45: =G45+H45 -> 64 | G45: 0 | H45: =I45+J45+K45+L45+M45+N45+O45 -> 64 | I45: 30 | J45: 24 | N45: 4 | O45: 6 | R45: 64 | X45: =SUM(P45:W45) -> 64
A46: ОП.04 | B46: Организация обслуживания | E46: 5 | F46: =G46+H46 -> 100 | G46: 10 | H46: =I46+J46+K46+L46+M46+N46+O46 -> 90 | I46: 58 | J46: 26 | N46: 2 | O46: 4 | T46: 100 | X46: =SUM(P46:W46) -> 100
A47: ОП.05 | B47: Основы экономики, менеджмента, маркетинга | E47: 5 | F47: =G47+H47 -> 48 | G47: 0 | H47: =I47+J47+K47+L47+M47+N47+O47 -> 48 | I47: 24 | J47: 18 | N47: 2 | O47: 4 | T47: 48 | X47: =SUM(P47:W47) -> 48
A48: ОП.06. | B48: Правовые основы профессиональной деятельности | D48: 3 | F48: =G48+H48 -> 56 | G48: 0 | H48: =I48+J48+K48+L48+M48+N48+O48 -> 56 | I48: 26 | J48: 28 | O48: 2 | R48: 56 | X48: =SUM(P48:W48) -> 56
A49: ОП.07 | B49: Информационые технологии в профессиональной деятельности | D49: 4 | F49: =G49+H49 -> 94 | G49: 0 | H49: =I49+J49+K49+L49+M49+N49+O49 -> 94 | I49: 20 | J49: 72 | O49: 2 | R49: 36 | S49: 58 | X49: =SUM(P49:W49) -> 94
A50: ОП.08 | B50: Охрана труда | E50: 7 | F50: =G50+H50 -> 36 | G50: 0 | H50: =I50+J50+K50+L50+M50+N50+O50 -> 36 | I50: 16 | J50: 14 | N50: 2 | O50: 4 | V50: 36 | X50: =SUM(P50:W50) -> 36 | Z50: 48-36 хэм 4 курска кучте
A51: ОП.09 | B51: Безопасность жизнедеятельности | D51: 6 | F51: =G51+H51 -> 68 | G51: 0 | H51: =I51+J51+K51+L51+M51+N51+O51 -> 68 | I51: 20 | J51: 46 | O51: 2 | U51: 68 | X51: =SUM(P51:W51) -> 68
A52: П. 00 | B52: Профессиональный цикл | D52: =D53+D59+D65+D71+D77+D83+D88 -> 20 | E52: =E53+E59+E65+E71+E77+E83+E88 -> 7 | F52: =F53+F59+F65+F71+F77+F83+F88 -> 2748 | G52: =G53+G59+G65+G71+G77+G83+G88 -> 68 | H52: =H53+H59+H65+H71+H77+H83+H88 -> 2662 | I52: =I53+I59+I65+I71+I77+I83+I88 -> 640 | J52: =J53+J59+J65+J71+J77+J83+J88 -> 564 | K52: =K53+K59+K65+K71+K77+K83+K88 -> 40 | L52: =L53+L59+L65+L71+L77+L83+L88 -> 540 | M52: =M53+M59+M65+M71+M77+M83+M88 -> 756 | N52: =N53+N59+N65+N71+N77+N83+N88 -> 0 | O52: =O53+O59+O65+O71+O77+O83+O88 -> 122 | P52: 0 | Q52: 0 | R52: =R53+R59+R65+R71+R83+R88+R77 -> 160 | S52: =S53+S59+S65+S71+S83+S88+S77 -> 608 | T52: =T53+T59+T65+T71+T83+T88+T77 -> 260 | U52: =U53+U59+U65+U71+U83+U88+U77 -> 640 | V52: =V53+V59+V65+V71+V83+V88+V77 -> 576 | W52: =W53+W59+W65+W71+W83+W88+W77 -> 504 | X52: =SUM(P52:W52) -> 2748
A53: ПМ. 01 | B53: Организация и ведение процессов приготовления и подготовки к реализации полуфабрикатов для блюд, кулинарных изделий сложного ассортимента | D53: =COUNTA(D54:D58) -> 3 | E53: =COUNTA(E54:E58) -> 1 | F53: =SUM(F54:F58) -> 288 | G53: =SUM(G54:G58) -> 12 | H53: =SUM(H54:H58) -> 276 | I53: =SUM(I54:I58) -> 44 | J53: =SUM(J54:J58) -> 36 | K53: =SUM(K54:K58) -> 0 | L53: =SUM(L54:L58) -> 72 | M53: =SUM(M54:M58) -> 108 | N53: =SUM(N54:N58) -> 0 | O53: =SUM(O54:O58) -> 16 | P53: 0 | Q53: 0 | R53: 0 | S53: =S54+S55+S56+S57+S58 -> 288 | T53: =T54+T55+T56+T57+T58 -> 0 | U53: =U54+U55+U56+U57+U58 -> 0 | V53: =V54+V55+V56+V57+V58 -> 0 | W53: =W54+W55+W56+W57+W58 -> 0 | X53: =SUM(P53:W53) -> 288
A54: МДК. 01.01 | B54: Организация процессов приготовления, подготовки креализации кулинарных полуфабрикатов | D54: 4 | F54: =G54+H54 -> 36 | G54: 6 | H54: =I54+J54+K54+L54+M54+N54+O54 -> 30 | I54: 16 | J54: 12 | O54: 2 | S54: 36 | X54: =SUM(P54:W54) -> 36
A55: МДК. 01.02 | B55: Процессы приготовления, подготовки к реализации кулинарных полуфабрикатов | D55: 4 | F55: =G55+H55 -> 60 | G55: 6 | H55: =I55+J55+K55+L55+M55+N55+O55 -> 54 | I55: 28 | J55: 24 | O55: 2 | S55: 60 | X55: =SUM(P55:W55) -> 60
A56: УП. 01 | B56: Учебная практика | D56: 4* | F56: 72 | G56: 0 | H56: =I56+J56+K56+L56+M56+N56+O56 -> 72 | L56: 72 | S56: 72 | X56: =SUM(P56:W56) -> 72
A57: ПП.01 | B57: Производственная практика | F57: 108 | G57: 0 | H57: =I57+J57+K57+L57+M57+N57+O57 -> 108 | M57: 108 | S57: 108 | X57: =SUM(P57:W57) -> 108
A58: ПМ.01.Э | B58: Экзамен по модулю | E58: 4 | F58: 12 | G58: 0 | H58: =I58+J58+K58+L58+M58+N58+O58 -> 12 | O58: 12 | S58: 12 | X58: =SUM(P58:W58) -> 12
A59: ПМ.02 | B59: Организация и ведение процессов приготовления,оформления и подготовки к реализации горячихблюд, кулинарных изделий, закусок сложного ассортимента с учетом потребностей различных категорий потребителей, видов и форм обслуживания | D59: =COUNTA(D60:D64) -> 3 | E59: =COUNTA(E60:E64) -> 1 | F59: =SUM(F60:F64) -> 480 | G59: =SUM(G60:G64) -> 10 | H59: =SUM(H60:H64) -> 470 | I59: =SUM(I60:I64) -> 90 | J59: =SUM(J60:J64) -> 92 | K59: =SUM(K60:K64) -> 20 | L59: =SUM(L60:L64) -> 108 | M59: =SUM(M60:M64) -> 144 | N59: =SUM(N60:N64) -> 0 | O59: =SUM(O60:O64) -> 16 | P59: =SUM(P60:P64) -> 0 | Q59: =SUM(Q60:Q64) -> 0 | R59: =SUM(R60:R64) -> 160 | S59: =SUM(S60:S64) -> 320 | T59: =SUM(T60:T64) -> 0 | U59: =SUM(U60:U64) -> 0 | V59: =SUM(V60:V64) -> 0 | W59: =SUM(W60:W64) -> 0 | X59: =SUM(P59:W59) -> 480
A60: МДК 02.01 | B60: Организация процессов приготовления, подготовки к реализации горячих блюд, кулинарных изделий, закусок сложного ассортимента | D60: 4 | F60: =G60+H60 -> 36 | G60: 0 | H60: =I60+J60+K60+L60+M60+N60+O60 -> 36 | I60: 20 | J60: 14 | O60: 2 | S60: 36 | X60: =SUM(P60:W60) -> 36
A61: МДК. 02.02 | B61: Процессы приготовления, подготовки к реализациигорячих блюд, кулинарных изделий, закусок сложного ассортимента | D61: 4 | F61: =G61+H61 -> 180 | G61: 10 | H61: =I61+J61+K61+L61+M61+N61+O61 -> 170 | I61: 70 | J61: 78 | K61: 20 | O61: 2 | R61: 124 | S61: 56 | X61: =SUM(P61:W61) -> 180
A62: УП. 02 | B62: Учебная практика | D62: 4 | F62: 108 | G62: 0 | H62: =I62+J62+K62+L62+M62+N62+O62 -> 108 | L62: 108 | R62: 36 | S62: 72 | X62: =SUM(P62:W62) -> 108
A63: ПП.02 | B63: Производственная практика | F63: 144 | G63: 0 | H63: =I63+J63+K63+L63+M63+N63+O63 -> 144 | M63: 144 | N63: 0 | O63: 0 | S63: 144 | X63: =SUM(P63:W63) -> 144
A64: ПМ.02.Э | B64: Экзамен по модулю | E64: 4 | F64: 12 | G64: 0 | H64: =I64+J64+K64+L64+M64+N64+O64 -> 12 | O64: 12 | S64: 12 | X64: =SUM(P64:W64) -> 12
A65: ПМ 03 | B65: Организация и ведение процессов приготовления, оформления и подготовки к реализации холодных блюд, кулинарных изделий, закусок сложного ассортимента с учетом потребностей различных категорий потребителей, видов и форм обслуживания | D65: 3 | E65: 1 | F65: =SUM(F66:F70) -> 236 | G65: =SUM(G66:G70) -> 12 | H65: =SUM(H66:H70) -> 224 | I65: =SUM(I66:I70) -> 58 | J65: =SUM(J66:J70) -> 42 | K65: =SUM(K66:K70) -> 0 | L65: =SUM(L66:L70) -> 36 | M65: =SUM(M66:M70) -> 72 | N65: =SUM(N66:N70) -> 0 | O65: =SUM(O66:O70) -> 16 | P65: =SUM(P66:P70) -> 0 | Q65: =SUM(Q66:Q70) -> 0 | R65: =SUM(R66:R70) -> 0 | S65: =SUM(S66:S70) -> 0 | T65: =SUM(T66:T70) -> 0 | U65: =SUM(U66:U70) -> 236 | V65: =SUM(V66:V70) -> 0 | W65: =SUM(W66:W70) -> 0 | X65: =SUM(P65:W65) -> 236
A66: МДК 03.01 | B66: Организация процессов приготовления, подготовки к реализации холодных блюд, кулинарных изделий, закусок сложного ассортимента | D66: 6 | F66: =SUM(G66:H66) -> 40 | G66: 6 | H66: =I66+J66+K66+L66+M66+N66+O66 -> 34 | I66: 20 | J66: 12 | O66: 2 | U66: 40 | X66: =SUM(P66:W66) -> 40
A67: МДК 03.02 | B67: Процессы приготовления, подготовки к реализации холодных блюд, кулинарных изделий, закусок сложного ассортимента | D67: 6 | F67: =SUM(G67:H67) -> 76 | G67: 6 | H67: =I67+J67+K67+L67+M67+N67+O67 -> 70 | I67: 38 | J67: 30 | O67: 2 | U67: 76 | X67: =SUM(P67:W67) -> 76
A68: УП. 03 | B68: Учебная практика | D68: 6* | F68: =SUM(G68:H68) -> 36 | G68: 0 | H68: =I68+J68+K68+L68+M68+N68+O68 -> 36 | L68: 36 | U68: 36 | X68: =SUM(P68:W68) -> 36
A69: ПП.03 | B69: Производственная практика | F69: =SUM(G69:H69) -> 72 | G69: 0 | H69: =I69+J69+K69+L69+M69+N69+O69 -> 72 | M69: 72 | U69: 72 | X69: =SUM(P69:W69) -> 72
A70: ПМ.03.Э | B70: Экзамен по модулю | E70: 6 | F70: =SUM(G70:H70) -> 12 | G70: 0 | H70: =I70+J70+K70+L70+M70+N70+O70 -> 12 | O70: 12 | U70: 12 | X70: =SUM(P70:W70) -> 12
A71: ПМ. 04 | B71: Организация и ведение процессов приготовления, оформления и подготовки к реализации холодных и горячих десертов, напитков сложного ассортимента с учетом потребностей различных категорий потребителей, видов и форм обслуживания | D71: 3 | E71: 1 | F71: =SUM(F72:F76) -> 258 | G71: =SUM(G72:G76) -> 18 | H71: =SUM(H72:H76) -> 240 | I71: =SUM(I72:I76) -> 66 | J71: =SUM(J72:J76) -> 50 | K71: =SUM(K72:K76) -> 0 | L71: =SUM(L72:L76) -> 36 | M71: =SUM(M72:M76) -> 72 | N71: =SUM(N72:N76) -> 0 | O71: =SUM(O72:O76) -> 16 | P71: =SUM(P72:P76) -> 0 | Q71: =SUM(Q72:Q76) -> 0 | R71: =SUM(R72:R76) -> 0 | S71: =SUM(S72:S76) -> 0 | T71: =SUM(T72:T76) -> 0 | U71: =SUM(U72:U76) -> 0 | V71: =SUM(V72:V76) -> 258 | W71: =SUM(W72:W76) -> 0 | X71: =SUM(P71:W71) -> 258
A72: МДК. 04.01 | B72: Организация процессов приготовления, подготовки к реализации холодных и горячих десертов, напитков сложного ассортимента | D72: 7 | F72: =G72+H72 -> 48 | G72: 10 | H72: =I72+J72+K72+L72+M72+N72+O72 -> 38 | I72: 22 | J72: 14 | O72: 2 | V72: 48 | X72: =SUM(P72:W72) -> 48
A73: МДК. 04.02 | B73: Процессы приготовления, подготовки к реализации холодных и горячих десертов, напитков сложного ассортимента | D73: 7 | F73: =G73+H73 -> 90 | G73: 8 | H73: =I73+J73+K73+L73+M73+N73+O73 -> 82 | I73: 44 | J73: 36 | O73: 2 | V73: 90 | X73: =SUM(P73:W73) -> 90
A74: УП. 04 | B74: Учебная практика | D74: 7* | F74: =G74+H74 -> 36 | G74: 0 | H74: =I74+J74+K74+L74+M74+N74+O74 -> 36 | L74: 36 | V74: 36 | X74: =SUM(P74:W74) -> 36
A75: ПП.04 | B75: Производственная практика | F75: =G75+H75 -> 72 | G75: 0 | H75: =I75+J75+K75+L75+M75+N75+O75 -> 72 | M75: 72 | V75: 72 | X75: =SUM(P75:W75) -> 72 | Z75: 108
A76: ПМ.04.Э | B76: Экзамен по модулю | E76: 7 | F76: =G76+H76 -> 12 | G76: 0 | H76: =I76+J76+K76+L76+M76+N76+O76 -> 12 | O76: 12 | V76: 12 | X76: =SUM(P76:W76) -> 12
A77: ПМ. 05 | B77: Организация и ведение процессов приготовления, оформления и подготовки к реализации хлебобулочных, мучных кондитерских изделий сложного ассортимента с учетом потребностей различных категорий потребителей, видов и форм обслуживания | D77: 3 | E77: 1 | F77: =SUM(F78:F82) -> 594 | G77: 0 | H77: =I77+J77+K77+L77+M77+N77+O77 -> 584 | I77: =SUM(I78:I82) -> 172 | J77: =SUM(J78:J82) -> 160 | K77: =SUM(K78:K82) -> 20 | L77: =SUM(L78:L82) -> 108 | M77: =SUM(M78:M82) -> 108 | N77: =SUM(N78:N82) -> 0 | O77: =SUM(O78:O82) -> 16 | P77: =SUM(P78:P82) -> 0 | Q77: =SUM(Q78:Q82) -> 0 | R77: =SUM(R78:R82) -> 0 | S77: =SUM(S78:S82) -> 0 | T77: =SUM(T78:T82) -> 0 | U77: =SUM(U78:U82) -> 0 | V77: =SUM(V78:V82) -> 318 | W77: =SUM(W78:W82) -> 276 | X77: =SUM(P77:W77) -> 594
A78: МДК. 05.01 | B78: Организация процессов приготовления, подготовки к реализации хлебобулочных, мучных кондитерских изделий сложного ассортимента | D78: 8* | F78: =G78+H78 -> 80 | G78: 0 | H78: =I78+J78+K78+L78+M78+N78+O78 -> 80 | I78: 40 | J78: 38 | O78: 2 | V78: 60 | W78: 20 | X78: =SUM(P78:W78) -> 80
A79: МДК 05.02 | B79: Процессы приготовления, подготовки к реализации хлебобулочных, мучных кондитерских изделий сложного ассортимента | D79: 8* | F79: =G79+H79 -> 286 | G79: 10 | H79: =I79+J79+K79+L79+M79+N79+O79 -> 276 | I79: 132 | J79: 122 | K79: 20 | O79: 2 | V79: 186 | W79: 100 | X79: =SUM(P79:W79) -> 286
A80: УП. 05 | B80: Учебная практика | D80: 8* | F80: 108 | G80: 0 | H80: =I80+J80+K80+L80+M80+N80+O80 -> 108 | L80: 108 | V80: 72 | W80: 36 | X80: =SUM(P80:W80) -> 108
A81: ПП.05 | B81: Производственная практика | F81: 108 | G81: 0 | H81: 108 | M81: 108 | W81: 108 | X81: =SUM(P81:W81) -> 108
A82: ПМ.05.Э | B82: Экзамен по модулю | E82: 8 | F82: 12 | G82: 0 | H82: 12 | O82: 12 | W82: 12 | X82: =SUM(P82:W82) -> 12
A83: ПМ. 06 | B83: Организация и контроль текущей деятельности подчиненного персонала | D83: 2 | E83: 1 | F83: =SUM(F84:F87) -> 228 | G83: 0 | H83: =I83+J83+K83+L83+M83+N83+O83 -> 220 | I83: =SUM(I84:I87) -> 56 | J83: =SUM(J84:J87) -> 42 | K83: =SUM(K84:K87) -> 0 | L83: =SUM(L84:L87) -> 36 | M83: =SUM(M84:M87) -> 72 | N83: =SUM(N84:N87) -> 0 | O83: =SUM(O84:O87) -> 14 | P83: =SUM(P84:P87) -> 0 | Q83: =SUM(Q84:Q87) -> 0 | R83: =SUM(R84:R87) -> 0 | S83: =SUM(S84:S87) -> 0 | T83: =SUM(T84:T87) -> 0 | U83: =SUM(U84:U87) -> 0 | V83: =SUM(V84:V87) -> 0 | W83: =SUM(W84:W87) -> 228 | X83: =SUM(P83:W83) -> 228
A84: МДК. 06.01 | B84: Оперативное управление текущей деятельностью подчиненного персонала | D84: 8 | F84: =G84+H84 -> 108 | G84: 8 | H84: =I84+J84+K84+L84+M84+N84+O84 -> 100 | I84: 56 | J84: 42 | O84: 2 | W84: 108 | X84: =SUM(P84:W84) -> 108
A85: УП. 06 | B85: Учебная практика | D85: 8* | F85: =G85+H85 -> 36 | G85: 0 | H85: =I85+J85+K85+L85+M85+N85+O85 -> 36 | L85: 36 | W85: 36 | X85: =SUM(P85:W85) -> 36
A86: ПП.06 | B86: Производственная практика | F86: =G86+H86 -> 72 | G86: 0 | H86: =I86+J86+K86+L86+M86+N86+O86 -> 72 | M86: 72 | W86: 72 | X86: =SUM(P86:W86) -> 72
A87: ПМ.06.Э | B87: Экзамен по модулю | E87: 8 | F87: =G87+H87 -> 12 | G87: 0 | H87: =I87+J87+K87+L87+M87+N87+O87 -> 12 | O87: 12 | W87: 12 | X87: =SUM(P87:W87) -> 12
A88: ПМ. 07 | B88: Выполнение работ по профессиям "Повар" и "Кондитер" | D88: 3 | E88: 1 | F88: =SUM(F89:F93) -> 664 | G88: =SUM(G89:G93) -> 16 | H88: =SUM(H89:H93) -> 648 | I88: =SUM(I89:I93) -> 154 | J88: =SUM(J89:J93) -> 142 | K88: =SUM(K89:K93) -> 0 | L88: =SUM(L89:L93) -> 144 | M88: =SUM(M89:M93) -> 180 | N88: =SUM(N89:N93) -> 0 | O88: =SUM(O89:O93) -> 28 | P88: =SUM(P89:P93) -> 0 | Q88: =SUM(Q89:Q93) -> 0 | R88: =SUM(R89:R93) -> 0 | S88: =SUM(S89:S93) -> 0 | T88: =SUM(T89:T93) -> 260 | U88: =SUM(U89:U93) -> 404 | V88: =SUM(V89:V93) -> 0 | W88: =SUM(W89:W93) -> 0 | X88: =SUM(P88:W88) -> 664
A89: МДК. 07.01 | B89: Технология выполнения работ по профессии "Повар" | D89: 6 | F89: =G89+H89 -> 182 | G89: 10 | H89: =I89+J89+K89+L89+M89+N89+O89 -> 172 | I89: 96 | J89: 74 | O89: 2 | T89: 82 | U89: 100 | X89: =SUM(P89:W89) -> 182
A90: МДК. 07.02 | B90: Технология выполнения работ по профессии "Кондитер" | D90: 6 | F90: =G90+H90 -> 134 | G90: 6 | H90: =I90+J90+K90+L90+M90+N90+O90 -> 128 | I90: 58 | J90: 68 | O90: 2 | T90: 34 | U90: 100 | X90: =SUM(P90:W90) -> 134
A91: УП. 07 | B91: Учебная практика | D91: 6* | F91: =G91+H91 -> 144 | G91: 0 | H91: =I91+J91+K91+L91+M91+N91+O91 -> 144 | L91: 144 | T91: 72 | U91: 72 | X91: =SUM(P91:W91) -> 144
A92: ПП. 07 | B92: Производственная практика | F92: =G92+H92 -> 180 | G92: 0 | H92: =I92+J92+K92+L92+M92+N92+O92 -> 180 | M92: 180 | T92: 72 | U92: 108 | X92: =SUM(P92:W92) -> 180
A93: ПМ.07.Э | B93: Экзамен по модулю | E93: 6 | F93: =G93+H93 -> 24 | G93: 0 | H93: =I93+J93+K93+L93+M93+N93+O93 -> 24 | O93: 24 | U93: 24 | X93: =SUM(P93:W93) -> 24
A94: ПДП | B94: Производственная практика (преддипломная) | F94: 144 | G94: 0 | H94: =I94+J94+K94+L94+M94+N94+O94 -> 144 | M94: 144 | W94: 144 | X94: =SUM(P94:W94) -> 144
A95: ГИА. 00 | B95: Государственная итоговая аттестация | F95: 216 | G95: 0 | H95: =I95+J95+K95+L95+M95+N95+O95 -> 216 | O95: 216 | P95: 0 | W95: 216 | X95: =SUM(P95:W95) -> 216
A96: ГИА. 01 | B96: Подготовка дипломной работы, подготовка к демонстрационному экзамену | F96: 144 | G96: 0 | H96: =I96+J96+K96+L96+M96+N96+O96 -> 144 | O96: 144 | W96: 144 | X96: =SUM(P96:W96) -> 144
A97: ГИА. 02 | B97: Защита дипломной работы(проекта) | F97: 36 | G97: 0 | H97: 36 | O97: 36 | W97: 36 | X97: =SUM(P97:W97) -> 36
A98: ГИА. 03 | B98: Проведение демонстрационного экзамена | F98: 36 | H98: 36 | O98: 36 | W98: 36 | X98: =SUM(P98:W98) -> 36
B99: Объём образовательной программы вакадемических часах | D99: =D15+D32+D39+D42+D52+D94+D95 -> 37 | E99: =E15+E32+E39+E42+E52+E94+E95 -> 22 | F99: =F15+F32+F39+F42+F52+F94+F95 -> 5940 | G99: =G15+G32+G39+G42+G52+G94+G95 -> 86 | H99: =H15+H32+H39+H42+H52+H94+H95 -> 5838 | I99: =I15+I32+I39+I42+I52+I94+I95 -> 1795 | J99: =J15+J32+J39+J42+J52+J94+J95 -> 2067 | K99: =K15+K32+K39+K42+K52+K94+K95 -> 40 | L99: =L15+L32+L39+L42+L52+L94+L95 -> 540 | M99: =M15+M32+M39+M42+M52+M94+M95 -> 900 | N99: =N15+N32+N39+N42+N52+N94+N95 -> 44 | O99: =O15+O32+O39+O42+O52+O94+O95 -> 452 | P99: =P15+P32+P39+P42+P52+P94+P95 -> 612 | Q99: =Q15+Q32+Q39+Q42+Q52+Q94+Q95 -> 864 | R99: =R15+R32+R39+R42+R52+R94+R95 -> 612 | S99: =S15+S32+S39+S42+S52+S94+S95 -> 864 | T99: =T15+T32+T39+T42+T52+T94+T95 -> 612 | U99: =U15+U32+U39+U42+U52+U94+U95 -> 864 | V99: =V15+V32+V39+V42+V52+V94+V95 -> 612 | W99: =W15+W32+W39+W42+W52+W94+W95 -> 900 | X99: =SUM(P99:W99) -> 5940
I101: часов дисциплин и МДК | O101: =SUM(P101:W101) -> 4536 | P101: =P99-P102-P103-P104 -> 612 | Q101: =Q99-Q102-Q103-Q104 -> 864 | R101: =R99-R102-R103-R104 -> 612 | S101: =S99-S102-S103-S104 -> 468 | T101: =T99-T102-T103-T104 -> 468 | U101: =U99-U102-U103-U104 -> 576 | V101: =V99-V102-V103-V104 -> 432 | W101: =W99-W102-W103-W104 -> 504 | X101: =SUM(P101:W101) -> 4536
A102: Государственная (итоговая) аттестация | I102: часов учебной практики 15 недель | O102: =SUM(P102:W102) -> 504 | S102: =S56+S62+S68+S74+S80+S85+S91 -> 144 | T102: =T56+T62+T68+T74+T80+T85+T91 -> 72 | U102: =U56+U62+U68+U74+U80+U85+U91 -> 108 | V102: =V56+V62+V68+V74+V80+V85+V91 -> 108 | W102: =W56+W62+W68+W74+W80+W85+W91 -> 72 | X102: =SUM(P102:W102) -> 504
A103: 1.1. Дипломная работа (проект) | I103: часов производств. практики 23 недель | O103: =SUM(P103:W103) -> 756 | S103: =S57+S63+S69+S75+S81+S86+S92 -> 252 | T103: =T57+T63+T69+T75+T81+T86+T92 -> 72 | U103: =U57+U63+U69+U75+U81+U86+U92 -> 180 | V103: =V57+V63+V69+V75+V81+V86+V92 -> 72 | W103: =W57+W63+W69+W75+W81+W86+W92 -> 180 | X103: =SUM(P103:W103) -> 756
A104: Выполнение дипломной работы (проекта) с 18.05 по 14.06 (всего 4 нед.) | I104: часов преддиплом. практики | O104: =SUM(P104:W104) -> 144 | W104: 144 | X104: =SUM(P104:W104) -> 144
A105: Защита дипломной работы с 15.06 по 28.06 (всего 2 нед.) | I105: кол.-во экзаменов | O105: =SUM(P105:W105) -> 22 | P105: 1 | Q105: 5 | R105: 1 | S105: 4 | T105: 2 | U105: 5 | V105: 2 | W105: 2 | X105: =SUM(P105:W105) -> 22
A106: 1.2. Государственный экзамен - выполнение демонстрационного экзамена | I106: кол.-во дифф. зачетов | O106: =SUM(P106:W106) -> 37 | P106: 1 | Q106: 8 | R106: 3 | S106: 7 | T106: 1 | U106: 8 | V106: 3 | W106: 6 | X106: =SUM(P106:W106) -> 37
I107: кол.-во зачетов | O107: =SUM(P107:W107) -> 2 | Q107: 1 | S107: 1 | X107: =SUM(P107:W107) -> 2
I108: Курсовых работ (проектов) | O108: =SUM(P108:W108) -> 2 | T108: 1 | V108: 1 | X108: =SUM(P108:W108) -> 2
